bitfinex-derivatives/quotes_SOLF0:USTF0_20250310
["timestamp","ask_amount","ask_price","bid_price","bid_amount"]
[1741635096565,66.22588786,118.46,118.45,0.06231353]
[1741635097475,0.06254184,118.48,118.45,0.06231353]
[1741635097675,0.06254184,118.48,118.47,8.4466]
[1741635097973,260.22588786,118.6,118.47,66.22588786]
[1741635098161,194.0,118.6,118.48,4.1135]
[1741635098363,278.58,118.61,118.53,66.22588786]
[1741635098672,278.58,118.61,118.54,8.4287]
[1741635099170,102.12559174,118.62,118.61,8.4367]
[1741635099376,26.74363359,118.62,118.61,8.4367]
[1741635099569,26.74363359,118.62,118.58,66.22588786]
[1741635099570,26.74363359,118.62,118.55,7.08319454]
[1741635099877,26.74363359,118.62,118.54,74.65458786]
[1741635100273,6.795e-05,118.59,118.57,0.05444898]
[1741635100974,6.795e-05,118.59,118.58,74.66468786]
[1741635101377,6.795e-05,118.59,118.57,0.05444898]
[1741635101576,6.795e-05,118.59,118.58,7.08561798]
[1741635102375,6.795e-05,118.59,118.57,0.05444898]
[1741635103070,6.795e-05,118.59,118.57,8.49344898]
[1741635103274,6.795e-05,118.59,118.57,0.05444898]
[1741635104371,6.795e-05,118.59,118.47,64.44]
[1741635104372,278.46006795,118.59,118.47,64.44]
[1741635104571,278.46006795,118.59,118.48,70.65508786]
[1741635104572,66.22588786,118.58,118.48,70.65508786]
[1741635104771,66.22588786,118.58,118.48,77.74586633]
[1741635104977,278.46,118.59,118.48,77.74586633]
[1741635105171,278.46,118.59,118.52,66.22588786]
[1741635105370,278.46,118.59,118.52,64.44]
[1741635105770,0.0635897,118.57,118.54,0.06357607]
[1741635106368,66.22588786,118.56,118.48,12.875]
[1741635106573,66.22588786,118.56,118.48,4.4292]
[1741635107070,66.22588786,118.56,118.49,8.4448]
[1741635107374,66.22588786,118.56,118.48,4.4292]
[1741635107779,66.28010691,118.54,118.51,0.05395697]
[1741635108179,66.22588786,118.52,118.51,0.05395697]
[1741635108375,344.68588786,118.52,118.44,68.6731]
[1741635108577,278.46,118.52,118.44,68.6731]
[1741635109280,66.22588786,118.51,118.44,68.6731]
[1741635109577,0.05506883,118.49,118.47,0.05937744]
[1741635110783,66.28095669,118.49,118.47,0.05937744]
[1741635111079,68.82095669,118.49,118.34,155.87441063]
[1741635111285,66.22588786,118.45,118.36,8.399]
[1741635111482,278.48,118.45,118.36,8.399]
[1741635111985,344.70588786,118.45,118.36,8.399]
[1741635112179,0.0574946,118.42,118.39,0.05447873]
[1741635112580,66.22588786,118.41,118.39,0.05447873]
[1741635112781,66.22588786,118.41,118.37,7.11721588]
[1741635112981,66.22588786,118.41,118.34,8.4559]
[1741635113184,130.62588786,118.41,118.31,91.47441063]
[1741635113385,66.22588786,118.39,118.31,99.93221063]
[1741635113584,66.22588786,118.37,118.32,7.12719529]
[1741635113777,278.56,118.38,118.32,7.12719529]
[1741635113977,0.06029439,118.36,118.35,8.4549]
[1741635114684,278.56,118.38,118.37,8.4538]
[1741635114880,278.66,118.43,118.33,0.06307301]
[1741635115083,278.66,118.43,118.32,130.60588786]
[1741635115084,278.66,118.43,118.34,66.22588786]
[1741635115281,278.66,118.43,118.34,73.36125718]
[1741635115482,278.66,118.43,118.34,7.13536932]
[1741635115682,278.66,118.43,118.35,7.13536932]
[1741635115884,0.05356293,118.4,118.37,0.05764134]
[1741635117081,130.65945079,118.4,118.37,0.05764134]
[1741635117288,66.22588786,118.38,118.3,12.9202]
[1741635117689,64.38,118.4,118.3,12.9202]
[1741635117990,66.22588786,118.37,118.31,7.14821945]
[1741635118585,0.06063302,118.35,118.33,0.06174397]
[1741635118983,0.06063302,118.35,118.34,8.4559]
[1741635119185,0.06063302,118.35,118.33,0.06174397]
[1741635119489,0.06063302,118.35,118.34,7.14821945]
[1741635119887,0.06063302,118.35,118.33,0.06174397]
[1741635120089,0.06063302,118.35,118.33,8.51794397]
[1741635120388,0.06063302,118.35,118.33,0.06174397]
[1741635121091,66.22588786,118.34,118.27,4.4423]
[1741635121693,66.22588786,118.34,118.31,8.458]
[1741635121991,66.22588786,118.34,118.28,7.15429862]
[1741635122186,66.22588786,118.32,118.31,0.054093]
[1741635122393,278.8,118.32,118.31,0.054093]
[1741635122593,278.8,118.32,118.25,8.1871]
[1741635123094,0.05878412,118.3,118.27,0.06183255]
[1741635123289,278.8,118.32,118.27,0.06183255]
[1741635123783,278.8,118.32,118.28,7.15748158]
[1741635123982,280.33139656,118.37,118.28,7.15748158]
[1741635124188,278.86,118.37,118.35,8.4549]
[1741635124393,278.86,118.37,118.3,66.22588786]
[1741635124589,278.86,118.37,118.31,64.36]
[1741635124787,194.0,118.42,118.34,66.22588786]
[1741635124998,278.86,118.45,118.36,66.22588786]
[1741635125297,278.86,118.45,118.42,8.4497]
[1741635125500,278.86,118.45,118.37,7.15748158]
[1741635125795,278.92202779,118.45,118.42,0.05647478]
[1741635125987,409.42588786,118.45,118.42,0.05647478]
[1741635126189,66.22588786,118.43,118.42,0.05647478]
[1741635126487,66.22588786,118.43,118.35,64.36]
[1741635127085,66.22588786,118.41,118.36,7.15131902]
[1741635127291,66.22588786,118.37,118.36,7.15131902]
[1741635127487,278.84,118.38,118.36,7.15131902]
[1741635127697,278.84,118.38,118.32,4.0959]
[1741635127894,278.84,118.38,118.35,0.05769794]
[1741635128089,278.84,118.38,118.33,7.14885926]
[1741635128090,8.51675929,118.36,118.33,7.14885926]
[1741635128292,66.22588786,118.35,118.33,7.14885926]
[1741635128594,66.22588786,118.35,118.27,4.3603]
[1741635128595,66.22588786,118.35,118.29,8.459]
[1741635128989,66.22588786,118.35,118.27,4.3603]
[1741635129184,0.06149977,118.33,118.31,0.05780657]
[1741635129787,66.28738763,118.33,118.31,0.05780657]
[1741635130294,66.28738763,118.33,118.25,91.47441063]
[1741635130492,66.22588786,118.31,118.25,91.47441063]
[1741635130685,343.18,118.3,118.25,91.47441063]
[1741635131091,278.88,118.3,118.25,91.47441063]
[1741635131396,278.88,118.35,118.25,91.47441063]
[1741635131595,0.063836,118.29,118.25,91.47441063]
[1741635131794,0.063836,118.29,118.23,64.3]
[1741635131996,3.6e-05,118.29,118.28,8.4602]
[1741635132396,3.6e-05,118.29,118.26,0.06149077]
[1741635132901,3.6e-05,118.29,118.28,8.4602]
[1741635133996,3.6e-05,118.29,118.27,8.4607]
[1741635134398,3.6e-05,118.29,118.26,0.06149077]
[1741635134598,3.6e-05,118.29,118.27,8.4609]
[1741635134897,3.6e-05,118.29,118.26,0.06149077]
[1741635135108,3.6e-05,118.29,118.28,8.4602]
[1741635135405,66.22588786,118.42,118.28,64.28]
[1741635135699,345.14588786,118.45,118.32,66.22588786]
[1741635136003,278.92,118.45,118.37,66.22588786]
[1741635136192,278.92,118.45,118.38,77.0367]
[1741635136389,66.22588786,118.44,118.38,77.0367]
[1741635136597,0.0565645,118.43,118.4,0.05355085]
[1741635138803,0.0565645,118.43,118.42,8.4502]
[1741635139099,278.96,118.5,118.4,0.05355085]
[1741635139308,345.18588786,118.5,118.38,77.0367]
[1741635139510,66.22588786,118.46,118.38,12.7767]
[1741635139809,66.22588786,118.44,118.39,8.4522]
[1741635140103,0.06488133,118.43,118.4,0.05329283]
[1741635140695,66.22588786,118.42,118.4,0.05329283]
[1741635140894,0.06488133,118.43,118.4,0.05329283]
[1741635141696,66.22588786,118.42,118.4,0.05329283]
[1741635142301,278.96488133,118.43,118.4,0.05329283]
[1741635142502,278.96488133,118.43,118.42,8.4502]
[1741635142701,278.86,118.48,118.4,0.05329283]
[1741635143098,278.86,118.48,118.39,70.37048786]
[1741635144101,0.06423888,118.45,118.42,0.05986309]
[1741635144905,66.22588786,118.44,118.42,0.05986309]
[1741635145105,66.22588786,118.44,118.34,4.0142]
[1741635145306,66.22588786,118.4,118.36,8.4542]
[1741635145502,66.22588786,118.4,118.35,153.12202165]
[1741635146003,66.22588786,118.38,118.35,153.12202165]
[1741635146306,74.73531153,118.38,118.35,153.18020136]
[1741635146609,0.05632367,118.38,118.35,153.18020136]
[1741635147304,66.22588786,118.37,118.35,153.18020136]
[1741635147502,64.19632367,118.38,118.35,153.18020136]
[1741635148511,66.22588786,118.37,118.35,0.05817971]
[1741635148912,64.19632367,118.38,118.35,0.05817971]
[1741635149412,130.42221153,118.38,118.35,0.05817971]
[1741635149612,138.87561153,118.38,118.35,0.05817971]
[1741635149909,0.05632367,118.38,118.35,0.05817971]
[1741635150114,0.05632367,118.38,118.37,8.4538]
[1741635150413,0.05632367,118.38,118.35,0.05817971]
[1741635150708,353.55551153,118.38,118.35,0.05817971]
[1741635150913,345.10221153,118.38,118.35,0.05817971]
[1741635151104,278.87632367,118.38,118.35,0.05817971]
[1741635151711,0.05632367,118.38,118.35,0.05817971]
[1741635152909,278.82,118.37,118.35,0.05817971]
[1741635153215,66.22588786,118.36,118.3,4.3029]
[1741635153510,278.82,118.37,118.3,4.3029]
[1741635154215,9e-06,118.35,118.32,0.0617174]
[1741635154511,66.22588786,118.46,118.33,130.32588786]
[1741635154717,278.84,118.47,118.36,66.22588786]
[1741635154913,287.2868,118.47,118.4,8.451]
[1741635155126,278.84,118.47,118.39,66.22588786]
[1741635155420,287.2837,118.52,118.45,8.448]
[1741635155623,66.22588786,118.51,118.39,66.22588786]
[1741635155822,66.22588786,118.49,118.38,64.1]
[1741635156016,66.22588786,118.47,118.39,8.4521]
[1741635156216,66.22588786,118.47,118.37,8.7383]
[1741635156217,66.22588786,118.45,118.37,8.7383]
[1741635156416,64.08,118.44,118.38,8.4526]
[1741635156613,66.22588786,118.42,118.34,4.2165]
[1741635156821,66.22588786,118.4,118.33,100.96465605]
[1741635157013,66.22588786,118.4,118.37,0.05898548]
[1741635157218,0.06090882,118.38,118.37,0.05898548]
[1741635159520,278.84,118.45,118.37,0.05898548]
[1741635160025,278.84,118.45,118.34,66.22588786]
[1741635160324,8.45,118.43,118.34,66.22588786]
[1741635160518,66.22588786,118.42,118.33,72.5502]
[1741635160825,0.06377749,118.4,118.37,0.06302204]
[1741635161326,66.22588786,118.39,118.37,0.06302204]
[1741635162428,8.4542,118.37,118.29,221.63775976]
[1741635162725,66.22588786,118.35,118.29,157.59775976]
[1741635163625,0.05403828,118.33,118.31,0.06083472]
[1741635164019,66.27992614,118.33,118.31,0.06083472]
[1741635164219,72.4774,118.32,118.31,0.06083472]
[1741635164424,72.4774,118.32,118.29,153.42965976]
[1741635164927,64.02,118.32,118.27,8.4605]
[1741635165122,64.02,118.32,118.24,4.1246]
[1741635165529,0.06210257,118.29,118.27,0.05854503]
[1741635165721,261.69706671,118.37,118.27,0.05854503]
[1741635165722,64.0,118.36,118.27,0.05854503]
[1741635165927,64.0,118.36,118.24,70.35048786]
[1741635167026,0.06457617,118.31,118.29,0.06029674]
[1741635167329,66.22588786,118.35,118.29,0.06029674]
[1741635167527,0.05691233,118.31,118.29,0.06029674]
[1741635167730,66.22588786,118.33,118.29,0.06029674]
[1741635168031,0.05552659,118.31,118.29,0.06029674]
[1741635168230,0.05552659,118.31,118.3,8.4588]
[1741635168434,64.0,118.36,118.29,0.06029674]
[1741635168829,278.82,118.38,118.3,66.22588786]
[1741635169029,278.82,118.38,118.31,8.5216]
[1741635169223,278.82,118.38,118.37,8.4538]
[1741635169434,278.82,118.38,118.31,8.5216]
[1741635169624,278.82,118.38,118.36,0.06382269]
[1741635169831,278.88122362,118.38,118.31,8.5216]
[1741635170034,345.10711148,118.38,118.31,8.5216]
[1741635170228,345.10711148,118.38,118.33,0.05429525]
[1741635170528,66.22588786,118.36,118.33,0.05429525]
[1741635170738,64.0,118.35,118.33,0.05429525]
[1741635171234,64.06030308,118.35,118.33,0.05429525]
[1741635171734,0.06030308,118.35,118.33,0.05429525]
[1741635171930,8.4559,118.34,118.33,0.05429525]
[1741635172136,0.06030308,118.35,118.33,0.05429525]
[1741635174135,74.68178786,118.34,118.33,0.05429525]
[1741635174329,66.22588786,118.34,118.27,4.1914]
[1741635174727,66.22588786,118.34,118.29,8.4594]
[1741635174938,66.22588786,118.34,118.27,4.1914]
[1741635175332,0.06103849,118.32,118.29,0.06051332]
[1741635175639,0.06103849,118.32,118.31,8.4581]
[1741635176932,0.06103849,118.32,118.29,0.06051332]
[1741635177331,74.74462635,118.32,118.29,0.06051332]
[1741635177536,345.24692635,118.32,118.29,0.06051332]
[1741635178640,0.06103849,118.32,118.29,0.06051332]
[1741635179042,66.28692635,118.32,118.29,0.06051332]
[1741635180047,66.22588786,118.3,118.25,4.1266]
[1741635180547,74.68508786,118.3,118.23,4.0719]
[1741635180737,74.68508786,118.3,118.26,8.4613]
[1741635180939,66.22588786,118.3,118.23,4.0719]
[1741635181242,0.05556343,118.28,118.25,0.06206189]
[1741635181844,0.05556343,118.28,118.27,8.4609]
[1741635182245,66.22588786,118.34,118.25,0.06206189]
[1741635182554,66.22588786,118.34,118.23,4.0719]
[1741635183051,66.22588786,118.32,118.23,4.0719]
[1741635183246,66.22588786,118.28,118.23,4.0719]
[1741635183449,66.22588786,118.28,118.26,0.05485654]
[1741635183637,66.22588786,118.28,118.21,4.1807]
[1741635183839,342.92,118.29,118.19,8.6241]
[1741635183840,66.22588786,118.26,118.19,8.6241]
[1741635184044,66.22588786,118.26,118.22,8.4641]
[1741635184244,8.4625,118.25,118.19,8.6241]
[1741635184450,66.22588786,118.26,118.21,8.4649]
[1741635184745,0.05531812,118.25,118.22,0.05734973]
[1741635185549,0.05531812,118.25,118.24,8.4631]
[1741635185749,0.05531812,118.25,118.22,0.05734973]
[1741635186050,0.05531812,118.25,118.24,8.4631]
[1741635186250,0.05531812,118.25,118.22,0.05734973]
[1741635186650,0.05531812,118.25,118.22,8.52134973]
[1741635186849,0.05531812,118.25,118.22,0.05734973]
[1741635187251,0.05531812,118.25,118.24,8.4631]
[1741635187449,0.05531812,118.25,118.22,0.05734973]
[1741635187851,0.05531812,118.25,118.24,8.4631]
[1741635188442,0.05531812,118.25,118.22,0.05734973]
[1741635189047,1.812e-05,118.25,118.24,8.4631]
[1741635189252,1.812e-05,118.25,118.24,11.0031]
[1741635189449,8.455,118.43,118.24,132.62588786]
[1741635189450,66.22588786,118.36,118.24,132.62588786]
[1741635189754,279.06,118.39,118.27,66.22588786]
[1741635189755,66.22588786,118.38,118.27,66.22588786]
[1741635189957,66.22588786,118.36,118.28,8.2059]
[1741635190353,279.06,118.39,118.29,134.44628786]
[1741635190551,345.32588786,118.44,118.41,8.4509]
[1741635190751,8.4495,118.43,118.33,0.0594028]
[1741635190950,8.4495,118.43,118.31,66.22588786]
[1741635191150,8.451,118.41,118.31,66.22588786]
[1741635191356,66.22588786,118.4,118.29,134.44628786]
[1741635191650,202.85514622,118.46,118.29,134.44628786]
[1741635191651,318.05612363,118.53,118.42,191.0]
[1741635191856,139.77430891,118.6,118.52,66.22588786]
[1741635192060,139.77430891,118.6,118.56,66.22588786]
[1741635192351,75.44395744,118.6,118.59,66.22588786]
[1741635192557,75.44395744,118.6,118.57,0.06234731]
[1741635193151,75.44395744,118.6,118.58,66.22588786]
[1741635193352,4.4095,118.64,118.58,127.53589541]
[1741635193657,0.06378667,118.6,118.58,191.31589541]
[1741635193861,63.84,118.68,118.58,61.31000755]
[1741635194049,74.79698786,118.67,118.58,61.37448367]
[1741635194255,0.06162319,118.6,118.59,61.31000755]
[1741635194451,74.79698786,118.67,118.59,61.31000755]
[1741635194659,0.0620044,118.61,118.59,61.31000755]
[1741635194960,278.84,118.72,118.63,8.4352]
[1741635195259,278.84,118.72,118.64,66.22588786]
[1741635195461,278.84,118.72,118.66,66.22588786]
[1741635195856,278.84,118.72,118.6,133.50730755]
[1741635196159,278.84,118.72,118.7,136.39024033]
[1741635196355,161.17273754,118.72,118.7,123.05964033]
[1741635196559,161.2366942,118.72,118.7,123.11940376]
[1741635196859,278.62,118.72,118.71,110.35801359]
[1741635197057,66.22588786,118.76,118.71,110.35801359]
[1741635197360,1.46689991,118.77,118.7,227.37683065]
[1741635197361,291.488,118.79,118.7,0.05976343]
[1741635197556,291.488,118.79,118.67,66.22588786]
[1741635197860,66.22588786,118.76,118.65,193.26006746]
[1741635198055,0.06315519,118.74,118.72,0.06073873]
[1741635198261,0.06315519,118.74,118.65,127.0341796]
[1741635198463,66.22588786,118.73,118.65,127.0341796]
[1741635198665,278.62,118.72,118.65,127.0341796]
[1741635198955,278.62,118.72,118.63,66.22588786]
[1741635199361,194.0,118.9,118.71,66.22588786]
[1741635199554,1.46550998,118.95,118.84,66.22588786]
[1741635199755,194.0,119.03,118.9,66.22588786]
[1741635199953,66.22588786,119.1,118.86,66.22588786]
[1741635199954,66.22588786,119.06,118.93,66.22588786]
[1741635200170,66.22588786,119.06,118.91,63.64]
[1741635200171,0.06445212,118.98,118.96,66.22588786]
[1741635200456,4.2348,119.09,118.96,66.22588786]
[1741635200457,4.2348,119.09,118.98,0.05944386]
[1741635200665,4.2348,119.09,119.04,66.22588786]
[1741635200861,278.46,119.12,119.04,129.86588786]
[1741635201163,278.46,119.12,119.04,66.22588786]
[1741635201366,278.46,119.12,119.03,129.84588786]
[1741635201552,0.05661717,119.09,119.07,0.05404218]
[1741635203465,0.05661717,119.09,119.07,66.27993004]
[1741635203763,4.2448,119.21,119.07,68.79993004]
[1741635204064,4.2448,119.21,119.06,63.52]
[1741635204065,4.2448,119.21,119.14,66.22588786]
[1741635204267,278.08,119.23,119.14,66.22588786]
[1741635205155,0.02864719,119.2,119.17,0.06282543]
[1741635205564,67.8692,119.22,119.14,66.22588786]
[1741635205760,0.02864719,119.2,119.17,0.05816807]
[1741635205961,0.02864719,119.2,119.1,66.22588786]
[1741635206366,66.22588786,119.2,119.07,66.22588786]
[1741635206564,66.22588786,119.18,119.07,66.22588786]
[1741635206761,66.22588786,119.16,119.04,66.22588786]
[1741635206963,277.78,119.15,119.04,66.22588786]
[1741635207156,0.05312739,119.11,119.09,0.06404087]
[1741635207360,129.64588786,119.1,119.0,63.42]
[1741635207565,129.64588786,119.1,119.01,1.68053104]
[1741635208061,66.22588786,119.08,119.01,1.68053104]
[1741635208262,277.6,119.07,119.01,1.68053104]
[1741635208560,0.05448253,119.06,119.03,0.06126079]
[1741635208966,219.00939597,119.07,119.03,0.06126079]
[1741635209169,343.82588786,119.14,119.03,0.06126079]
[1741635209366,66.22588786,119.12,119.03,0.06126079]
[1741635209566,66.22588786,119.12,119.01,65.04053104]
[1741635209969,63.36,119.11,119.01,65.04053104]
[1741635210167,0.05421122,119.08,119.05,0.05569125]
[1741635210467,66.22588786,119.1,119.05,0.05569125]
[1741635210664,63.16216334,119.11,119.01,65.04053104]
[1741635210665,66.22588786,119.08,119.01,1.68053104]
[1741635210869,277.5,119.07,119.01,1.68053104]
[1741635211268,66.22588786,119.12,119.01,1.68053104]
[1741635211460,277.5,119.11,119.01,1.68053104]
[1741635211963,277.30670747,119.11,119.05,0.06195183]
[1741635213168,0.03910356,119.09,119.05,0.06195183]
[1741635213667,0.03910356,119.09,119.07,8.4038]
[1741635213861,0.03910356,119.09,119.06,66.22588786]
[1741635214062,281.8346,119.16,119.08,66.22588786]
[1741635214262,277.5,119.16,119.1,8.402]
[1741635214468,66.22588786,119.2,119.09,63.3]
[1741635214768,281.5192,119.21,119.1,66.22588786]
[1741635215267,281.5192,119.21,119.14,0.0623183]
[1741635215472,66.22588786,119.2,119.14,0.0623183]
[1741635215669,66.22588786,119.18,119.14,0.0623183]
[1741635215871,129.50588786,119.18,119.09,63.3]
[1741635216275,66.22588786,119.18,119.09,63.3]
[1741635216475,194.0,119.23,119.09,63.3]
[1741635216476,277.42,119.26,119.13,66.22588786]
[1741635216770,277.42,119.26,119.21,66.22588786]
[1741635216771,1.67700821,119.26,119.21,66.22588786]
[1741635216973,1.67700821,119.26,119.23,66.22588786]
[1741635217181,0.06215903,119.25,119.23,66.22588786]
[1741635217571,277.42,119.33,119.26,8.39]
[1741635217771,277.42,119.33,119.26,137.85588786]
[1741635217971,277.42,119.33,119.26,129.46588786]
[1741635218172,340.56,119.38,119.26,129.46588786]
[1741635218976,66.22588786,119.33,119.31,2.636e-05]
[1741635219173,63.22,119.32,119.18,8.3961]
[1741635219387,66.22588786,119.35,119.22,66.22588786]
[1741635219671,1.45930306,119.37,119.18,468.32]
[1741635219877,66.22588786,119.34,119.22,66.22588786]
[1741635220068,63.22,119.34,119.24,66.22588786]
[1741635220579,0.05428564,119.29,119.27,0.05752152]
[1741635220978,195.45930306,119.37,119.28,66.22588786]
[1741635220979,4.0271,119.35,119.28,66.22588786]
[1741635221174,4.4249,119.39,119.33,66.22588786]
[1741635221375,8.3809,119.4,119.33,66.22588786]
[1741635221569,281.1671,119.43,119.35,66.27937635]
[1741635221774,0.05428564,119.37,119.35,66.27937635]
[1741635221975,9.44935073,119.45,119.35,68.74588786]
[1741635222280,1.07135073,119.45,119.37,66.22588786]
[1741635222482,1.07135073,119.45,119.38,66.22588786]
[1741635222670,194.0,119.54,119.37,63.16]
[1741635222671,340.3,119.57,119.44,66.22588786]
[1741635222876,340.3,119.57,119.45,63.16]
[1741635223081,74.44108786,119.55,119.44,66.22588786]
[1741635223382,66.22588786,119.54,119.48,0.05553545]
[1741635223582,8.3745,119.49,119.48,0.05553545]
[1741635223783,4.2655,119.53,119.48,0.05553545]
[1741635224084,8.3794,119.43,119.38,66.22588786]
[1741635224282,66.22588786,119.49,119.34,66.22588786]
[1741635224283,340.02,119.45,119.34,66.22588786]
[1741635224671,276.92,119.45,119.37,66.22588786]
[1741635225082,276.92,119.45,119.34,66.22588786]
[1741635225382,0.05553545,119.42,119.4,0.06387128]
[1741635225576,63.08,119.41,119.34,66.22588786]
[1741635226678,0.06347669,119.39,119.36,0.05743471]
[1741635226880,8.3823,119.38,119.36,0.05743471]
[1741635227081,0.06347669,119.39,119.36,0.05743471]
[1741635227877,8.3828,119.38,119.36,0.05743471]
[1741635228080,0.06347669,119.39,119.36,0.05743471]
[1741635228279,8.3774,119.45,119.38,74.60768786]
[1741635228481,4.1161,119.51,119.42,66.22588786]
[1741635228889,194.0,119.5,119.42,66.22588786]
[1741635229079,197.9861,119.5,119.39,66.22588786]
[1741635229580,0.05593004,119.46,119.34,66.22588786]
[1741635229786,276.68,119.45,119.34,66.22588786]
[1741635229988,67.1939,119.44,119.34,66.22588786]
[1741635230191,67.1939,119.44,119.29,63.0]
[1741635230192,66.22588786,119.43,119.31,66.22588786]
[1741635230386,259.97448419,119.43,119.31,66.22588786]
[1741635230687,3.9861,119.42,119.31,66.22588786]
[1741635230884,0.06391344,119.38,119.36,0.06000603]
[1741635231289,0.06391344,119.38,119.31,66.22588786]
[1741635231580,0.06391344,119.38,119.28,66.22588786]
[1741635231983,62.98,119.48,119.36,66.22588786]
[1741635232287,62.98,119.48,119.39,66.22588786]
[1741635232486,67.0527,119.49,119.39,66.22588786]
[1741635233085,0.0606555,119.45,119.43,0.05409614]
[1741635233292,62.98,119.44,119.35,62.98]
[1741635233589,62.98,119.44,119.37,66.22588786]
[1741635233791,62.98,119.44,119.34,66.22588786]
[1741635233988,276.64,119.43,119.34,66.22588786]
[1741635234292,8.3825,119.38,119.34,66.22588786]
[1741635234584,0.06374132,119.4,119.37,0.06058618]
[1741635234790,62.96,119.39,119.32,66.22588786]
[1741635234984,8.3849,119.35,119.3,8.3877]
[1741635235183,62.96,119.39,119.26,66.7477]
[1741635235379,62.96,119.39,119.31,66.22588786]
[1741635235589,62.96,119.39,119.26,66.7477]
[1741635235788,62.96,119.39,119.26,62.96]
[1741635235984,1.45817184,119.45,119.36,66.22588786]
[1741635236385,8.38,119.42,119.36,74.60908786]
[1741635236692,0.05904831,119.42,119.39,0.05473192]
[1741635237595,0.05904831,119.42,119.4,66.22588786]
[1741635237795,339.52,119.53,119.4,132.45177572]
[1741635237982,8.3729,119.52,119.44,74.60378786]
[1741635238186,339.52,119.53,119.4,66.22588786]
[1741635238383,194.0,119.54,119.44,66.22588786]
[1741635238594,342.78588786,119.59,119.47,66.22588786]
[1741635238790,1.4567679,119.54,119.45,62.92]
[1741635238986,4.0311,119.53,119.52,0.05435717]
[1741635239191,4.0311,119.53,119.46,8.3762]
[1741635239391,4.0311,119.53,119.47,66.22588786]
[1741635239595,4.0311,119.53,119.51,0.06080562]
[1741635239793,4.0311,119.53,119.42,62.9]
[1741635240094,289.0805,119.52,119.43,8.3787]
[1741635240395,343.3563858,119.52,119.4,66.22588786]
[1741635240894,3.8963858,119.52,119.4,66.22588786]
[1741635241203,0.06231559,119.47,119.45,0.05878386]
[1741635241497,533.38,119.51,119.45,0.05878386]
[1741635241696,533.38,119.51,119.4,74.60648786]
[1741635241697,0.05446801,119.47,119.4,74.60648786]
[1741635241885,260.22588786,119.5,119.37,66.22588786]
[1741635242401,66.22588786,119.46,119.36,128.08264766]
[1741635242703,194.0,119.49,119.36,128.08264766]
[1741635242704,66.22588786,119.44,119.36,128.08264766]
[1741635242886,276.48,119.43,119.36,128.08264766]
[1741635243085,194.0,119.45,119.36,128.08264766]
[1741635243286,536.70588786,119.51,119.38,66.22588786]
[1741635243594,194.0,119.49,119.38,66.22588786]
[1741635243795,194.0,119.48,119.36,66.22588786]
[1741635244095,0.05934261,119.45,119.42,0.05598807]
[1741635244491,276.5,119.56,119.44,66.22588786]
[1741635244692,276.5,119.56,119.47,66.22588786]
[1741635245190,280.6462,119.56,119.51,65.56255944]
[1741635245402,280.6462,119.56,119.46,65.56255944]
[1741635245595,343.5062,119.56,119.46,65.56255944]
[1741635245798,0.05887102,119.52,119.5,65.56255944]
[1741635246096,259.56255944,119.69,119.51,128.42255944]
[1741635246390,259.56255944,119.69,119.55,65.56255944]
[1741635246391,1.45594511,119.64,119.55,65.56255944]
[1741635246591,128.40255944,119.63,119.51,65.56255944]
[1741635246798,62.84,119.63,119.54,65.56255944]
[1741635247092,4.1462,119.65,119.6,65.56255944]
[1741635247295,4.0415,119.84,119.64,65.56255944]
[1741635247491,1.53686057,119.83,119.72,65.56255944]
[1741635247691,0.05355727,119.75,119.73,65.62677324]
[1741635247887,62.82,119.83,119.73,65.56255944]
[1741635248197,62.82,119.83,119.7,128.38255944]
[1741635248394,1.45427192,119.85,119.7,65.56255944]
[1741635248704,276.38,119.9,119.76,65.56255944]
[1741635249000,0.05344952,119.84,119.82,0.06129695]
[1741635249298,128.36255944,119.85,119.65,195.2381]
[1741635249495,65.56255944,119.82,119.69,65.56255944]
[1741635249691,65.56255944,119.79,119.69,65.56255944]
[1741635249895,67.2,119.78,119.64,69.44745944]
[1741635250088,67.2,119.78,119.71,8.3591]
[1741635250402,276.12,119.88,119.76,65.56255944]
[1741635250598,4.3867,119.9,119.82,8.3514]
[1741635250903,65.56255944,119.86,119.77,62.74]
[1741635251088,128.30255944,119.86,119.76,65.56255944]
[1741635251497,128.30255944,119.86,119.73,128.30255944]
[1741635251696,128.30255944,119.86,119.74,8.3565]
[1741635251900,0.05928744,119.81,119.78,0.06414403]
[1741635252201,0.05928744,119.81,119.73,128.30255944]